[Event "Nakhchivan Premium 2021"]
[Site "Nakhchivan"]
[Date "2021.03.31"]
[Round "10.3"]
[White "Ahmadova, Yegana"]
[Black "Babayeva, Nasrin"]
[Result "0-1"]
[ECO "B00"]
[WhiteElo "1421"]
[BlackElo "1564"]
[Annotator "NA RC"]
[PlyCount "92"]
[EventDate "2021.03.14"]
[EventType "tourn"]
[EventCountry "AZE"]
[SourceTitle "playchess.com"]
[Source "ChessBase"]
[SourceQuality "1"]
[TimeControl "5400+30"]

1. e4 {[%emt 0:00:00]} Nc6 {[%emt 0:00:00]} 2. d4 {[%emt 0:00:00]} d5 {[%emt 0:00:00]} 3. e5 {[%emt 0:00:00]} Bf5 {[%emt 0:00:00]} 4. Bd3 {[%emt 0:01:33]} Nxd4 {[%emt 0:00:00]} 5. Bxf5 {[%emt 0:00:36]} Nxf5 {[%emt 0:00:00]} 6. c3 {[%emt 0:00:28]} e6 {[%emt 0:00:12]} 7. Nf3 {[%emt 0:01:33]} h5 {[%emt 0:07:42]} 8. Nd4 {[%emt 0:00:33]} Nxd4 {[%emt 0:07:59]} 9. cxd4 {[%emt 0:00:16]} Bb4+ {[%emt 0:03:30]} 10. Nc3 {[%emt 0:01:55]} Ne7 {[%emt 0:01:47]} 11. a3 {[%emt 0:03:10]} Ba5 {[%emt 0:00:29]} 12. b4 {[%emt 0:02:13]} Bb6 {[%emt 0:00:06]} 13. Na4 {[%emt 0:01:03]} Nf5 {[%emt 0:01:40]} 14. Nc5 {[%emt 0:00:56]} Qh4 {[%emt 0:06:57]} 15. Bb2 {[%emt 0:06:14]} Qg4 {[%emt 0:12:02]} 16. Qxg4 {[%emt 0:02:14]} hxg4 {[%emt 0:00:02]} 17. Kd2 {[%emt 0:04:23]} O-O-O {[%emt 0:02:04]} 18. Kd3 {[%emt 0:00:39]} Bxc5 {[%emt 0:00:42]} 19. bxc5 {[%emt 0:00:09]} Rh4 {[%emt 0:01:53]} 20. h3 {[%emt 0:03:05]} Rdh8 {[%emt 0:00:34]} 21. g3 {[%emt 0:02:26]} Rxh3 {[%emt 0:00:08]} 22. Rhb1 {[%emt 0:00:30]} Rh2 {[%emt 0:08:08]} 23. Rf1 {[%emt 0:01:28]} R8h3 {[%emt 0:04:15]} 24. Bc1 {[%emt 0:00:52]} Kd7 {[%emt 0:03:36]} 25. Rb1 {[%emt 0:00:45]} Rh1 {[%emt 0:02:28]} 26. Be3 {[%emt 0:00:35]} Rxf1 {[%emt 0:00:16]} 27. Rxf1 {[%emt 0:00:06]} Nxe3 {[%emt 0:02:01]} 28. Kxe3 {[%emt 0:00:31]} g5 {[%emt 0:00:56]} 29. Ke2 {[%emt 0:00:59]} b6 {[%emt 0:01:01]} 30. cxb6 {[%emt 0:00:20]} axb6 {[%emt 0:00:07]} 31. a4 {[%emt 0:00:45]} Rh8 {[%emt 0:00:17]} 32. Ra1 {[%emt 0:05:23]} Ra8 {[%emt 0:00:48]} 33. f4 {[%emt 0:01:41]} gxf4 {[%emt 0:00:29]} 34. gxf4 {[%emt 0:00:06]} Ra5 {[%emt 0:00:06]} 35. Ke3 {[%emt 0:01:37]} b5 {[%emt 0:00:11]} 36. Rg1 {[%emt 0:00:48]} bxa4 {[%emt 0:00:55]} 37. Rxg4 {[%emt 0:00:15]} c5 {[%emt 0:00:59]} 38. dxc5 {[%emt 0:00:37]} Rxc5 {[%emt 0:00:01]} 39. Rg1 {[%emt 0:00:59]} a3 {[%emt 0:00:21]} 40. Ra1 {[%emt 0:00:00]} Ra5 {[%emt 0:00:00]} 41. Kd4 {[%emt 0:00:00]} a2 {[%emt 0:00:00]} 42. Kc3 {[%emt 0:00:00]} Kc6 {[%emt 0:00:00]} 43. Kb3 {[%emt 0:00:00]} Kc5 {[%emt 0:00:00]} 44. Kc3 {[%emt 0:00:00]} Ra3+ {[%emt 0:00:00]} 45. Kb2 {[%emt 0:00:00]} Kb4 {[%emt 0:00:00]} 46. Kc2 {[%emt 0:00:00]} Rf3 {[%emt 0:00:00]} 0-1

[Event "Nakhchivan Premium 2021"]
[Site "Nakhchivan"]
[Date "2021.03.31"]
[Round "10.4"]
[White "Baghirov, Orkhan"]
[Black "Garayev, Sadig"]
[Result "0-1"]
[ECO "D30"]
[WhiteElo "1473"]
[BlackElo "1781"]
[Annotator "NA RC"]
[PlyCount "102"]
[EventDate "2021.03.14"]
[EventType "tourn"]
[EventCountry "AZE"]
[SourceTitle "playchess.com"]
[Source "ChessBase"]
[SourceQuality "1"]
[TimeControl "5400+30"]

1. d4 {[%emt 0:00:00]} d5 {[%emt 0:00:00]} 2. c4 {[%emt 0:00:04]} e6 {[%emt 0:00:00]} 3. Nf3 {[%emt 0:00:05]} Nf6 {[%emt 0:00:14]} 4. g3 {[%emt 0:00:44]} dxc4 {[%emt 0:00:06]} 5. Qa4+ {[%emt 0:01:00]} Bd7 {[%emt 0:00:57]} 6. Qxc4 {[%emt 0:00:30]} c5 {[%emt 0:00:20]} 7. Bg2 {[%emt 0:03:21]} Bc6 {[%emt 0:00:15]} 8. e3 {[%emt 0:01:14]} cxd4 {[%emt 0:07:15]} 9. exd4 {[%emt 0:03:07]} Bd5 {[%emt 0:08:15]} 10. Qd3 {[%emt 0:03:36]} Be4 {[%emt 0:11:27]} 11. Qd1 {[%emt 0:07:23]} Nbd7 {[%emt 0:02:41]} 12. Nc3 {[%emt 0:02:34]} Bb4 {[%emt 0:01:48]} 13. O-O {[%emt 0:05:43]} Bxc3 {[%emt 0:00:25]} 14. bxc3 {[%emt 0:00:13]} Rc8 {[%emt 0:00:10]} 15. Bd2 {[%emt 0:01:21]} O-O {[%emt 0:00:46]} 16. Re1 {[%emt 0:06:35]} h6 {[%emt 0:08:13]} 17. Rc1 {[%emt 0:08:28]} Nb6 {[%emt 0:05:55]} 18. Ne5 {[%emt 0:09:36]} Bxg2 {[%emt 0:01:04]} 19. Kxg2 {[%emt 0:00:02]} Qd5+ {[%emt 0:01:46]} 20. f3 {[%emt 0:01:53]} Nc4 {[%emt 0:07:44]} 21. Rb1 {[%emt 0:10:42]} b6 {[%emt 0:03:07]} 22. Nd3 {[%emt 0:04:27]} Qa5 {[%emt 0:02:49]} 23. Nb4 {[%emt 0:07:13]} Nd5 {[%emt 0:00:56]} 24. Nxd5 {[%emt 0:03:22]} exd5 {[%emt 0:00:16]} 25. Rc1 {[%emt 0:05:08]} Qxa2 {[%emt 0:03:01]} 26. Rc2 {[%emt 0:00:48]} Qb3 {[%emt 0:01:15]} 27. Bc1 {[%emt 0:04:07]} Rce8 {[%emt 0:01:31]} 28. Rf1 {[%emt 0:01:19]} a5 {[%emt 0:00:47]} 29. Rff2 {[%emt 0:01:22]} Re3 {[%emt 0:01:58]} 30. Bd2 {[%emt 0:01:29]} Rfe8 {[%emt 0:00:31]} 31. Kh3 {[%emt 0:02:11]} Rd3 {[%emt 0:07:42]} 32. Qc1 {[%emt 0:01:30]} a4 {[%emt 0:02:53]} 33. Bf4 {[%emt 0:03:22]} a3 {[%emt 0:00:16]} 34. Kg2 {[%emt 0:01:27]} Ra8 {[%emt 0:01:44]} 35. Ra2 {[%emt 0:00:14]} Qxc3 {[%emt 0:01:10]} 36. Qb1 {[%emt 0:00:29]} Qxd4 {[%emt 0:01:03]} 37. Bc7 {[%emt 0:00:25]} Rc3 {[%emt 0:02:55]} 38. Bf4 {[%emt 0:00:45]} Qc5 {[%emt 0:03:04]} 39. Rfe2 {[%emt 0:00:39]} Ne3+ {[%emt 0:02:14]} 40. Bxe3 {[%emt 0:00:00]} Rxe3 {[%emt 0:00:00]} 41. Rec2 {[%emt 0:00:00]} Rc3 {[%emt 0:00:00]} 42. Rxc3 {[%emt 0:00:00]} Qxc3 {[%emt 0:00:00]} 43. Qxb6 {[%emt 0:00:00]} Qc4 {[%emt 0:00:00]} 44. Qb1 {[%emt 0:00:00]} d4 {[%emt 0:00:00]} 45. Kf2 {[%emt 0:00:00]} d3 {[%emt 0:00:00]} 46. Ke1 {[%emt 0:00:00]} Qc3+ {[%emt 0:00:00]} 47. Kd1 {[%emt 0:00:00]} Re8 {[%emt 0:00:00]} 48. Rd2 {[%emt 0:00:00]} Re2 {[%emt 0:00:00]} 49. Qxd3 {[%emt 0:00:00]} Qxd2+ {[%emt 0:00:00]} 50. Qxd2 {[%emt 0:00:00]} Rxd2+ {[%emt 0:00:00]} 51. Kxd2 {[%emt 0:00:00]} a2 {[%emt 0:00:00]} 0-1

[Event "Nakhchivan Premium 2021"]
[Site "Nakhchivan"]
[Date "2021.04.01"]
[Round "11.4"]
[White "Babayeva, Nasrin"]
[Black "Baghirov, Orkhan"]
[Result "1-0"]
[ECO "A14"]
[WhiteElo "1564"]
[BlackElo "1473"]
[Annotator "NA RC"]
[PlyCount "203"]
[EventDate "2021.03.14"]
[EventType "tourn"]
[EventCountry "AZE"]
[SourceTitle "playchess.com"]
[Source "ChessBase"]
[SourceQuality "1"]
[TimeControl "5400+30"]

1. c4 {[%emt 0:00:00]} e6 {[%emt 0:00:00]} 2. g3 {[%emt 0:00:00]} d5 {[%emt 0:00:00]} 3. Bg2 {[%emt 0:00:00]} Nf6 {[%emt 0:00:02]} 4. Nf3 {[%emt 0:00:01]} Be7 {[%emt 0:00:32]} 5. O-O {[%emt 0:00:11]} O-O {[%emt 0:00:16]} 6. b3 {[%emt 0:00:19]} c6 {[%emt 0:00:43]} 7. d4 {[%emt 0:00:25]} Nbd7 {[%emt 0:00:25]} 8. Nbd2 {[%emt 0:00:31]} Re8 {[%emt 0:01:13]} 9. Re1 {[%emt 0:00:29]} Nf8 {[%emt 0:01:40]} 10. Bb2 {[%emt 0:01:08]} Ng6 {[%emt 0:00:51]} 11. Qc2 {[%emt 0:01:49]} Bd7 {[%emt 0:04:33]} 12. e4 {[%emt 0:00:22]} dxe4 {[%emt 0:01:21]} 13. Nxe4 {[%emt 0:00:02]} Qc7 {[%emt 0:01:27]} 14. Nfd2 {[%emt 0:15:01]} Nxe4 {[%emt 0:05:35]} 15. Nxe4 {[%emt 0:00:03]} b6 {[%emt 0:00:47]} 16. Rad1 {[%emt 0:01:45]} a5 {[%emt 0:04:34]} 17. a3 {[%emt 0:00:56]} f5 {[%emt 0:06:52]} 18. Nd2 {[%emt 0:00:26]} Rad8 {[%emt 0:01:52]} 19. Nf3 {[%emt 0:05:09]} Bc8 {[%emt 0:02:58]} 20. Rd2 {[%emt 0:07:07]} Bf6 {[%emt 0:04:07]} 21. Rde2 {[%emt 0:04:13]} Qd7 {[%emt 0:05:18]} 22. d5 {[%emt 0:08:22]} cxd5 {[%emt 0:07:57]} 23. Bxf6 {[%emt 0:00:13]} gxf6 {[%emt 0:00:11]} 24. Nd4 {[%emt 0:02:59]} Nf8 {[%emt 0:06:51]} 25. cxd5 {[%emt 0:00:33]} e5 {[%emt 0:01:11]} 26. Nc6 {[%emt 0:00:34]} Ba6 {[%emt 0:01:16]} 27. Re3 {[%emt 0:02:02]} Rc8 {[%emt 0:01:49]} 28. Rc3 {[%emt 0:03:39]} Ng6 {[%emt 0:05:20]} 29. Rc1 {[%emt 0:02:27]} e4 {[%emt 0:02:28]} 30. Rd1 {[%emt 0:03:23]} Bd3 {[%emt 0:03:20]} 31. Qc1 {[%emt 0:03:50]} Kh8 {[%emt 0:08:21]} 32. Qe3 {[%emt 0:02:25]} Ne7 {[%emt 0:03:02]} 33. Nxe7 {[%emt 0:11:09]} Rxc3 {[%emt 0:03:06]} 34. Qd4 {[%emt 0:00:03]} Qxe7 {[%emt 0:01:03]} 35. Qxc3 {[%emt 0:00:03]} Qe5 {[%emt 0:04:39]} 36. Qc6 {[%emt 0:00:13]} b5 {[%emt 0:01:01]} 37. Bf1 {[%emt 0:01:32]} Bxf1 {[%emt 0:05:13]} 38. Rxf1 {[%emt 0:01:20]} e3 {[%emt 0:00:37]} 39. Qxb5 {[%emt 0:00:13]} e2 {[%emt 0:01:10]} 40. Re1 {[%emt 0:00:00]} f4 {[%emt 0:00:00]} 41. Qd3 {[%emt 0:00:00]} f3 {[%emt 0:00:00]} 42. Qxf3 {[%emt 0:00:00]} Qd4 {[%emt 0:00:00]} 43. Kg2 {[%emt 0:00:00]} Qd2 {[%emt 0:00:00]} 44. Qxf6+ {[%emt 0:00:00]} Kg8 {[%emt 0:00:00]} 45. Qa1 {[%emt 0:00:00]} Qxd5+ {[%emt 0:00:00]} 46. f3 {[%emt 0:00:00]} Qxb3 {[%emt 0:00:00]} 47. Qc1 {[%emt 0:00:00]} Qd5 {[%emt 0:00:00]} 48. Qc3 {[%emt 0:00:00]} a4 {[%emt 0:00:00]} 49. Kf2 {[%emt 0:00:00]} Qb3 {[%emt 0:00:00]} 50. Qc5 {[%emt 0:00:00]} Qd3 {[%emt 0:00:10]} 51. h4 {[%emt 0:01:29]} Kf7 {[%emt 0:04:14]} 52. Qa7+ {[%emt 0:01:46]} Re7 {[%emt 0:00:50]} 53. Qxa4 {[%emt 0:00:07]} Qe3+ {[%emt 0:00:20]} 54. Kg2 {[%emt 0:00:08]} Qc3 {[%emt 0:00:08]} 55. Qb4 {[%emt 0:00:22]} Qd3 {[%emt 0:00:21]} 56. Qc5 {[%emt 0:01:37]} Re3 {[%emt 0:01:24]} 57. Qh5+ {[%emt 0:03:02]} Kg7 {[%emt 0:02:53]} 58. Kf2 {[%emt 0:00:09]} Re7 {[%emt 0:00:10]} 59. Qg5+ {[%emt 0:00:21]} Kf8 {[%emt 0:00:11]} 60. g4 {[%emt 0:02:12]} Qd4+ {[%emt 0:00:45]} 61. Kg2 {[%emt 0:00:26]} Qc3 {[%emt 0:00:08]} 62. Qf4+ {[%emt 0:00:47]} Kg8 {[%emt 0:00:29]} 63. Kf2 {[%emt 0:05:24]} Qc5+ {[%emt 0:00:08]} 64. Kg3 {[%emt 0:00:15]} Qc3 {[%emt 0:00:13]} 65. Qb8+ {[%emt 0:01:55]} Kg7 {[%emt 0:00:53]} 66. Qb4 {[%emt 0:00:21]} Qe3 {[%emt 0:00:23]} 67. g5 {[%emt 0:00:40]} Qe5+ {[%emt 0:00:36]} 68. Qf4 {[%emt 0:00:05]} Qc3 {[%emt 0:00:28]} 69. Qf6+ {[%emt 0:00:02]} Qxf6 {[%emt 0:00:04]} 70. gxf6+ {[%emt 0:00:04]} Kxf6 {[%emt 0:00:01]} 71. Kf2 {[%emt 0:00:09]} Ra7 {[%emt 0:00:15]} 72. Ra1 {[%emt 0:00:15]} Re7 {[%emt 0:00:14]} 73. a4 {[%emt 0:00:10]} Kg6 {[%emt 0:00:34]} 74. a5 {[%emt 0:00:36]} Kh5 {[%emt 0:00:21]} 75. a6 {[%emt 0:00:21]} Kxh4 {[%emt 0:01:06]} 76. Ke1 {[%emt 0:00:30]} Ra7 {[%emt 0:00:03]} 77. Kxe2 {[%emt 0:00:09]} Kg5 {[%emt 0:00:12]} 78. Ra5+ {[%emt 0:00:33]} Kf4 {[%emt 0:00:18]} 79. Ra4+ {[%emt 0:00:17]} Kf5 {[%emt 0:00:06]} 80. Kd3 {[%emt 0:01:09]} Ke5 {[%emt 0:03:27]} 81. Kc4 {[%emt 0:00:13]} Kd6 {[%emt 0:00:46]} 82. Kb5 {[%emt 0:00:02]} Ra8 {[%emt 0:02:12]} 83. a7 {[%emt 0:00:22]} Kc7 {[%emt 0:00:26]} 84. Rh4 {[%emt 0:00:08]} h5 {[%emt 0:00:44]} 85. Rxh5 {[%emt 0:00:04]} Rxa7 {[%emt 0:00:57]} 86. Rh7+ {[%emt 0:00:03]} Kb8 {[%emt 0:00:08]} 87. Rxa7 {[%emt 0:00:04]} Kxa7 {[%emt 0:00:03]} 88. Kc6 {[%emt 0:00:08]} Kb8 {[%emt 0:00:02]} 89. Kd7 Kb7 90. f4 {[%emt 0:00:18]} Kb6 {[%emt 0:00:06]} 91. f5 {[%emt 0:00:05]} Kc5 {[%emt 0:00:01]} 92. f6 {[%emt 0:00:05]} Kd5 {[%emt 0:00:01]} 93. f7 {[%emt 0:00:05]} Ke5 {[%emt 0:00:17]} 94. f8=Q {[%emt 0:00:05]} Kd4 {[%emt 0:00:03]} 95. Qf5 {[%emt 0:00:08]} Kc3 {[%emt 0:00:04]} 96. Qe4 {[%emt 0:00:06]} Kb2 {[%emt 0:00:01]} 97. Qd3 {[%emt 0:00:10]} Ka1 {[%emt 0:00:01]} 98. Kc6 {[%emt 0:00:06]} Kb2 {[%emt 0:00:01]} 99. Kb5 {[%emt 0:00:06]} Ka1 {[%emt 0:00:08]} 100. Qd2 {[%emt 0:00:22]} Kb1 {[%emt 0:00:03]} 101. Kb4 {[%emt 0:00:05]} Ka1 {[%emt 0:00:01]} 102. Kb3 {[%emt 0:00:08]} 1-0

[Event "Nakhchivan Premium 2021"]
[Site "Nakhchivan"]
[Date "2021.04.01"]
[Round "11.5"]
[White "Ismayilov, Arturan"]
[Black "Ahmadova, Yegana"]
[Result "1-0"]
[ECO "B38"]
[WhiteElo "1663"]
[BlackElo "1421"]
[Annotator "NA RC"]
[PlyCount "97"]
[EventDate "2021.03.14"]
[EventType "tourn"]
[EventCountry "AZE"]
[SourceTitle "playchess.com"]
[Source "ChessBase"]
[SourceQuality "1"]
[TimeControl "5400+30"]

1. e4 {[%emt 0:00:00]} c5 {[%emt 0:00:00]} 2. Nf3 {[%emt 0:00:00]} Nc6 {[%emt 0:00:00]} 3. d4 {[%emt 0:00:01]} cxd4 {[%emt 0:00:00]} 4. Nxd4 {[%emt 0:00:03]} g6 {[%emt 0:00:00]} 5. c4 {[%emt 0:00:03]} Bg7 {[%emt 0:00:00]} 6. Be3 {[%emt 0:00:02]} Nf6 {[%emt 0:00:11]} 7. Nc3 {[%emt 0:00:05]} Nxd4 {[%emt 0:00:36]} 8. Bxd4 {[%emt 0:00:16]} O-O {[%emt 0:00:08]} 9. Be2 {[%emt 0:00:08]} d6 {[%emt 0:00:18]} 10. O-O {[%emt 0:00:33]} Be6 {[%emt 0:01:20]} 11. f4 {[%emt 0:03:37]} Rc8 {[%emt 0:00:16]} 12. b3 {[%emt 0:00:30]} a6 {[%emt 0:03:24]} 13. Rc1 {[%emt 0:01:09]} Bd7 {[%emt 0:01:20]} 14. Bf3 {[%emt 0:01:46]} Bc6 {[%emt 0:00:32]} 15. Qe2 {[%emt 0:05:06]} Nd7 {[%emt 0:00:30]} 16. Be3 {[%emt 0:02:53]} a5 {[%emt 0:02:08]} 17. Rfd1 {[%emt 0:00:32]} Qc7 {[%emt 0:02:01]} 18. a3 {[%emt 0:08:13]} Qb8 {[%emt 0:04:09]} 19. b4 {[%emt 0:01:04]} axb4 {[%emt 0:00:25]} 20. axb4 {[%emt 0:00:03]} b6 {[%emt 0:00:08]} 21. Bg4 {[%emt 0:06:59]} Rc7 {[%emt 0:05:14]} 22. Bxd7 {[%emt 0:03:27]} Rxd7 {[%emt 0:00:59]} 23. Nd5 {[%emt 0:01:46]} Bxd5 {[%emt 0:00:30]} 24. Rxd5 {[%emt 0:01:10]} Rb7 {[%emt 0:05:23]} 25. Rb5 {[%emt 0:02:20]} Rc8 {[%emt 0:01:03]} 26. h4 {[%emt 0:01:28]} e5 {[%emt 0:04:43]} 27. f5 {[%emt 0:01:28]} Rc6 {[%emt 0:06:33]} 28. h5 {[%emt 0:02:49]} Qc8 {[%emt 0:02:03]} 29. fxg6 {[%emt 0:02:49]} fxg6 {[%emt 0:00:58]} 30. hxg6 {[%emt 0:00:59]} hxg6 {[%emt 0:00:09]} 31. Qd3 {[%emt 0:01:05]} Bf8 {[%emt 0:05:29]} 32. Qd5+ {[%emt 0:02:34]} Kg7 {[%emt 0:00:35]} 33. Rf1 {[%emt 0:05:23]} Rxc4 {[%emt 0:21:55]} 34. Rxb6 {[%emt 0:01:36]} Rxb6 {[%emt 0:04:03]} 35. Qf7+ {[%emt 0:01:27]} Kh8 {[%emt 0:00:19]} 36. Bxb6 {[%emt 0:03:55]} Rc1 {[%emt 0:02:33]} 37. Be3 {[%emt 0:02:46]} Rxf1+ {[%emt 0:00:56]} 38. Qxf1 {[%emt 0:00:20]} Bg7 {[%emt 0:01:42]} 39. b5 {[%emt 0:00:53]} Qc2 {[%emt 0:05:25]} 40. b6 {[%emt 0:00:00]} Qxe4 {[%emt 0:00:00]} 41. Qc1 {[%emt 0:00:00]} Bf6 {[%emt 0:00:00]} 42. Bf2 {[%emt 0:00:00]} g5 {[%emt 0:00:00]} 43. Qc8+ {[%emt 0:00:00]} Kg7 {[%emt 0:00:00]} 44. b7 {[%emt 0:00:00]} Qb1+ {[%emt 0:00:00]} 45. Kh2 {[%emt 0:00:00]} Qh7+ {[%emt 0:00:00]} 46. Qh3 {[%emt 0:00:00]} Qb1 {[%emt 0:00:00]} 47. Qd7+ {[%emt 0:00:00]} Kg6 {[%emt 0:00:00]} 48. Qe8+ {[%emt 0:00:00]} Kg7 {[%emt 0:00:00]} 49. b8=Q {[%emt 0:00:00]} 1-0